Cogmind - Beta 13 @@@ ROGUE MODE // 2024.04.03 @ 06:54:36 Player: BrainTooSmol Result: Self-destructed Performance ------------- Evolutions (1) 500 Regions Visited (3) 600 Robots Destroyed (15) 75 Value Destroyed (420) 420 Prototype IDs (0) 0 Alien Tech Used (0) 0 Bonus (25) 25 TOTAL SCORE: 1620 Bonus ------- Follower Combat Kills 25 Cogmind --------- Core Integrity 320/400 Matter 300/300 Energy 250/250 System Corruption 0% Temperature Cool (0) Movement Walking (120) Location -9/Mines Parts ------- > --- POWER (1) -------- Ion Engine > --- PROPULSION (3) --- Aluminum Leg Aluminum Leg Aluminum Leg > --- UTILITY (3) ------ Small Storage Unit Transport Network Coupler Light Armor Plating > --- WEAPON (2) ------- EM Pulse Gun Hammer > --- INVENTORY (8) ---- Ion Engine Aluminum Leg Flight Unit Weight Redist. System Structural Scanner ECM Suite Assault Rifle EMP Blaster Peak State ------------ > --- POWER ------------ Light Nuclear Core > --- PROPULSION ------- Aluminum Leg Aluminum Leg Aluminum Leg > --- UTILITY ---------- Small Storage Unit Transport Network Coupler Light Armor Plating > --- WEAPON ----------- Assault Rifle Assault Rifle > --- INVENTORY -------- Ion Engine Flight Unit EM Pulse Gun Assault Rifle Hammer [Rating: 11] Favorites ----------- Power Ion Engine Engine Ion Engine Power Core Light Nuclear Core Propulsion Aluminum Leg Leg Aluminum Leg Utility Small Storage Unit Storage Small Storage Unit Processor Transport Network Coupler Protection Light Armor Plating Weapon Assault Rifle Energy Gun EM Pulse Gun Ballistic Gun Assault Rifle Impact Weapon Hammer Build | -11 -10 -9 -9 ------- Run | Yrd Mat Mat Min Slots Evolved 2 | . . 2 . Power . | . . . . Propulsion 1 | . . 1 . Utility 1 | . . 1 . Weapon . | . . . . Parts Attached 19 | 6 3 9 1 Power 3 | 1 1 1 . Engine 2 | 1 . 1 . Core 1 | . 1 . . Reactor . | . . . . Propulsion 4 | 2 . 2 . Treads . | . . . . Leg 4 | 2 . 2 . Wheel . | . . . . Hover . | . . . . Flight . | . . . . Utility 5 | 1 2 2 . Device . | . . . . Storage 1 | 1 . . . Processor 1 | . . 1 . Hackware . | . . . . Protection 3 | . 2 1 . Artifact . | . . . . Weapon 7 | 2 . 4 1 Energy Gun 1 | . . 1 . Energy Cannon . | . . . . Ballistic Gun 4 | 2 . 2 . Ballistic Cannon . | . . . . Launcher . | . . . . Special Weapon . | . . . . Impact Weapon 2 | . . 1 1 Slashing Weapon . | . . . . Piercing Weapon . | . . . . Special Melee Weapon . | . . . . Unidentified Prototypes . | . . . . Parts Lost 4 | . . 4 . Power 1 | . . 1 . Propulsion 1 | . . 1 . Utility 1 | . . 1 . Weapon 1 | . . 1 . Highest Loss Streak 3 | . . 3 . To Critical Strikes . | . . . . Average Slot Usage (%) 98 | . 96 99 100 Engine 8 | . 9 6 11 Core 2 | . 2 3 . Leg 30 | . 28 33 33 Storage 12 | . 14 11 11 Processor 6 | . . 11 11 Protection 11 | . 12 10 11 Energy Gun 3 | . . 2 11 Ballistic Gun 20 | . 28 18 7 Naked Turns . | . . . . Heaviest Build 17 | 14 17 17 17 Greatest Support 30 | 20 20 30 30 Greatest Overweight (x) . | . . . . Average Overweight (x) . | . . . . Largest Inventory Capacity 8 | 8 8 8 8 Average Capacity 7 | 7 8 8 8 Most Carried 8 | 2 7 8 8 Average Carried 5 | 1 4 6 7 Final Capacity 8 | 8 8 8 8 Final Carried 8 | 2 7 8 8 Class Distribution -------------------- 67% | Mutant 32% | Scavenger-Mutant Dominant Class ---------------- Mutant | -10/Materials Mutant | -9/Materials Scavenger-Mutant | -9/Mines Resources | -11 -10 -9 -9 ----------- Run | Yrd Mat Mat Min Matter Collected 676 | 277 193 176 30 Remotely . | . . . . Salvage Created 665 | 55 297 285 28 Parts 41 | 4 14 21 2 Haulers Intercepted 2 | . 1 1 . Recyclers Shooed . | . . . . Parts Field Recycled . | . . . . Retrieved Matter . | . . . . Parts Self-Destructed . | . . . . Prevented . | . . . . Kills | -11 -10 -9 -9 ------- Run | Yrd Mat Mat Min Combat Hostiles Destroyed 10 | . 5 4 1 Melee 1 | . . . 1 Guns 9 | . 5 4 . Classes Destroyed 5 | 1 2 2 . Tunneler 2 | 2 . . . Hauler 2 | . 1 1 . Watcher 1 | . . 1 . Grunt 7 | . 5 1 1 Sentry 3 | . . 3 . Best Kill Streak 2 | 2 2 2 1 Combat Bots Only 2 | . 2 1 1 Max Kills in Single Turn 1 | 1 1 1 1 Gunslinging . | . . . . Exploded . | . . . . Melee 1 | . . . 1 Uniques/NPCs Destroyed . | . . . . Combat | -11 -10 -9 -9 -------- Run | Yrd Mat Mat Min Hostile Shots Fired 80 | . 39 28 13 Missed 19 | . 11 5 3 Damage Taken 832 | . 333 326 173 Core 108 | . 28 80 . Absorbed by Shields . | . . . . Regen/Repaired (Parts) 32 | . 32 . . Core Remaining (%) 94 | 100 88 . . Volleys Fired 52 | 4 26 21 1 Largest 2 | 2 2 2 1 Hottest 40 | 40 40 40 40 Shots Fired 103 | 8 52 42 1 Gun 103 | 8 52 42 1 Cannon . | . . . . Launcher . | . . . . Special . | . . . . Kinetic 102 | 8 52 42 . Thermal . | . . . . Explosive . | . . . . Electromagnetic 1 | . . . 1 Robot Hit Streak 12 | 1 6 12 . Robot Miss Streak 2 | 2 2 2 . Penetration Max . | . . . . Secondary Targets 1 | . 1 . . Max Gunslinging Chain 1 | . 1 . . Shots Hit Robots 69 | 3 33 31 2 Core Hits 29 | 2 14 12 1 Critical Kills . | . . . . Critical Parts Destroyed . | . . . . Critical Strikes . | . . . . Melee Attacks 17 | . . 4 13 Impact 17 | . . 4 13 Slashing . | . . . . Piercing . | . . . . Sneak Attacks 1 | . . 1 . Combat Hostiles . | . . . . Follow-up Attacks . | . . . . Damage Inflicted 898 | 38 405 409 46 Guns 808 | 38 405 365 . Cannons . | . . . . Explosions . | . . . . Melee 90 | . . 44 46 Ramming . | . . . . Kinetic 808 | 38 405 365 . Thermal . | . . . . Explosive . | . . . . Electromagnetic . | . . . . Impact 90 | . . 44 46 Slashing . | . . . . Piercing . | . . . . Highest Corruption . | . . . . Average Corruption . | . . . . Corruption Purged . | . . . . Corruption Blocked . | . . . . Overload Shots . | . . . . Overflow Damage . | . . . . Projectiles . | . . . . Explosions . | . . . . Melee . | . . . . Knockbacks . | . . . . Impact . | . . . . Kinetic . | . . . . Secondary . | . . . . Self-Inflicted Damage . | . . . . Shots . | . . . . Rammed . | . . . . Targets Rammed . | . . . . Kicked . | . . . . Crushed . | . . . . Highest Temperature 13 | . 13 4 9 Average Temperature 3 | . 4 2 9 Received Heat Transfer 354 | . 186 102 66 Siege Activations . | . . . . Robots Corrupted . | . . . . Combat Hostiles . | . . . . Parts Fried . | . . . . Impact Corruptions . | . . . . Robots Melted . | . . . . Combat Hostiles . | . . . . Parts Melted . | . . . . Heat Transferred . | . . . . Parts Sabotaged . | . . . . Parts Stolen . | . . . . Parts Stripped . | . . . . Power Chain Reactions . | . . . . Alert | -11 -10 -9 -9 ------- Run | Yrd Mat Mat Min Peak Influence 131 | 10 125 131 91 Initial 51 | . 6 . 51 Average 47 | 2 38 66 58 Maximum Alert Level . | . . . . Low Security (%) 100 | 100 100 100 100 Level 1 . | . . . . Level 2 . | . . . . Level 3 . | . . . . Level 4 . | . . . . Level 5 . | . . . . High Security . | . . . . Max Security . | . . . . Squads Dispatched 3 | . 1 1 1 Investigation 1 | . . 1 . Extermination . | . . . . Reinforcement 1 | . 1 . . Assault 1 | . . . 1 Garrison . | . . . . Intercept . | . . . . Searches Triggered . | . . . . Construction Impeded . | . . . . Haulers Reinforced . | . . . . Active Scanning Responses . | . . . . Cargo Convoy Interrupts . | . . . . Stealth | -11 -10 -9 -9 --------- Run | Yrd Mat Mat Min Distress Signals 1 | . . 1 . Communications Jammed . | . . . . Distress Signals . | . . . . Times Spotted 22 | . 10 7 5 Peak Tracking Total 5 | . 3 3 5 Tactical Retreats 4 | . 3 . 1 Traps | -11 -10 -9 -9 ------- Run | Yrd Mat Mat Min Traps Triggered . | . . . . Indirectly . | . . . . Trap Hack Attempts . | . . . . Triggered . | . . . . Disarmed . | . . . . Reprogrammed . | . . . . Reused . | . . . . Traps Extracted . | . . . . Installed . | . . . . Triggered . | . . . . Machines | -11 -10 -9 -9 ---------- Run | Yrd Mat Mat Min Machines Disabled 1 | . . 1 . Max in Single Turn 1 | . . 1 . Machines Repaired . | . . . . Machines Dismantled . | . . . . Machines Sabotaged . | . . . . Overloaded Fab Kills . | . . . . Hacking | -11 -10 -9 -9 --------- Run | Yrd Mat Mat Min Machines Accessed 5 | . 3 2 . Terminals 3 | . 1 2 . Fabricators . | . . . . Repair Stations 1 | . 1 . . Recycling Units 1 | . 1 . . Scanalyzers . | . . . . Garrison Access . | . . . . Total Hacks 15 | . 10 5 . Successful 7 | . 5 2 . Failed 8 | . 5 3 . Catastrophic 1 | . . 1 . Database Lockouts . | . . . . Manual 7 | . 3 4 . Terminals 8 | . 3 5 . Fabricators . | . . . . Repair Stations 5 | . 5 . . Recycling Units 2 | . 2 . . Scanalyzers . | . . . . Garrison Access . | . . . . Terminal Hacks 3 | . 1 2 . Alert Level 1 | . . 1 . Unreport Threat 1 | . 1 . . Hauler Manifests 1 | . . 1 . Fabricator Hacks . | . . . . Repair Station Hacks 2 | . 2 . . Scan Component 1 | . 1 . . Repair 1 | . 1 . . Recycling Unit Hacks 2 | . 2 . . Report Inventory 1 | . 1 . . Retrieve Components 1 | . 1 . . Scanalyzer . | . . . . Garrison Access Hacks . | . . . . Unauthorized Hacks . | . . . . Terminals . | . . . . Fabricators . | . . . . Repair Stations . | . . . . Recycling Units . | . . . . Scanalyzers . | . . . . Garrison Access . | . . . . Data Cores Recovered . | . . . . Used . | . . . . Hacking Detections 4 | . 2 2 . Full Trace Events 1 | . . 1 . Feedback Events . | . . . . Feedback Blocked . | . . . . Robot Schematics Acquired . | . . . . Robots Built . | . . . . Authchips . | . . . . Time . | . . . . Total Robot Build Rating . | . . . . Part Schematics Acquired . | . . . . Parts Built . | . . . . Authchips . | . . . . Time . | . . . . Total Part Build Rating . | . . . . Parts Repaired 1 | . 1 . . Time 26 | . 26 . . Parts Recycled . | . . . . Recycled Matter . | . . . . Retrieved Matter . | . . . . Retrieved Components 3 | . 3 . . Parts Scanalyzed . | . . . . Part Schematics Acquired . | . . . . Parts Damaged . | . . . . Bothacking | -11 -10 -9 -9 ------------ Run | Yrd Mat Mat Min Used RIF Installer . | . . . . Robots Hacked . | . . . . Non-combat . | . . . . Combat . | . . . . Robot Hacks Applied . | . . . . Relay Couplers Released . | . . . . Fabnet Peak Effective % . | . . . . Robots Rewired . | . . . . Allies Hacked . | . . . . Hacks Repelled . | . . . . Allies | -11 -10 -9 -9 -------- Run | Yrd Mat Mat Min Total Allies 1 | . . . 1 Largest Group 1 | . . . 1 Highest-Rated Group 31 | . . . 31 Highest-Rated Ally 31 | . . . 31 Total Orders . | . . . . Ally Attacks 3 | . . . 3 Total Damage 42 | . . . 42 Kills 1 | . . . 1 Allies Corrupted . | . . . . Allies Melted . | . . . . Intel | -11 -10 -9 -9 ------- Run | Yrd Mat Mat Min Robot Analysis Total . | . . . . Derelict Logs Recovered . | . . . . Drone Launches . | . . . . Drone Recoveries . | . . . . Exploration | -11 -10 -9 -9 ------------- Run | Yrd Mat Mat Min Turns Passed 1178 | 137 430 381 230 Spaces Moved 617 | 85 189 190 153 Core 5 | 5 . . . Treads . | . . . . Legs 612 | 80 189 190 153 Wheels . | . . . . Hover . | . . . . Flight . | . . . . Fastest Speed 50 | 50 120 120 120 Average Speed 119 | 115 120 120 120 Slowest Speed 120 | 120 120 120 120 Overloaded Moves . | . . . . Propulsion Burnouts . | . . . . Robots Hopped . | . . . . Cave-ins Triggered . | . . . . Exploration Rate (%) 19 | 6 33 21 19 Regions Visited 3 Branch Regions 1 Pre-discovered Areas . | . . . . Known Exits Taken . | . . . . Unknown Exits Taken 3 | 1 1 1 . Scrap Searched 1 | . . . 1 Spaces Dug 8 | . . 2 6 Terrain Destroyed 8 | . . 2 6 Melee 8 | . . 2 6 Projectile . | . . . . AOE . | . . . . Terrain Rammed . | . . . . Walls Destroyed . | . . . . Machines Disabled . | . . . . Actions | -11 -10 -9 -9 --------- Run | Yrd Mat Mat Min Total 919 | 113 339 292 175 Wait 196 | 15 115 61 5 Move 614 | 84 188 189 153 Hop . | . . . . Pick Up 18 | 4 6 7 1 Fast Attach 7 | 4 2 1 . Attach 8 | 2 1 5 . Detach . | . . . . Swap 4 | . . 3 1 Drop 3 | . 1 1 1 Fire 52 | 4 26 21 1 Melee 17 | . . 4 13 Ram . | . . . . Kick . | . . . . Crush . | . . . . Escape Stasis . | . . . . Rewire . | . . . . Trap . | . . . . Miscellaneous . | . . . . Route ------- -11/Scrapyard -10/Materials -9/Materials -9/Mines History --------- Turn | Location | Event 4 | -11/Scrapyard | Discovered new exit (range 16) 138 | -11/Scrapyard | Entered Materials 195 | -10/Materials | Repaired Lgt. Armor Plating 253 | -10/Materials | Discovered new exit (range 13) 311 | -10/Materials | Build established: Mutant 568 | -10/Materials | Entered another Materials area 568 | -9/Materials | Evolved 2 slots: Propulsion x1, Utility x1 730 | -9/Materials | Lost 3 parts (1p1u1w) 931 | -9/Materials | Discovered new exit (range 6) 949 | -9/Materials | Entered Mines 1058 | -9/Mines | Met a Derelict testing a Signal Generator 1105 | -9/Mines | Build established: Scavenger-Mutant 1179 | -9/Mines | Self-destructed Last Messages --------------- 01067_ Signal Generator broadcasts a burst of procedurally generated transmissions. 01067_ ALERT: Intercepting significant anomalous signal. Dispatching assault force. 01068_ DM-P1O(g): "Okay, I guess that means it works. Now let's get out of here!" 01072_ Signal Generator broadcasts a burst of procedurally generated transmissions. 01072_ ALERT: Intercepting significant anomalous signal. Redirecting assault force. 01079_ ALERT: Intercepting significant anomalous signal. Redirecting assault force. 01090_ K-01 Serf collects debris. 01098_ I-25 Savior unfolds itself. 01100_ K-01 Serf collects debris. 01114_ Critical hit (Burn: +37). 01123_ K-01 Serf cleans the Plasma Injector. 01132_ K-01 Serf collects debris. 01136_ G-34 Mercenary destroyed. 01139_ Acquired 10 matter. Map ----- +----------------------------------------------------+ | ????????????????????????????# ## ## #??? | | ????????????????????????????# ??# ## #??? | | ????????????????????????????#???# ## #??? | | ????????????????????????????????## ### #??? | | ????????????????????????????????## #?# #??? | | ???????????????????????????????## ##?# #??? | | ???????????????????????????????#"# #??# #??? | | ???????????????????????????????#####??# #??? | | ??????????????????????????????####%#### ##?? | | ??????????????????????????????# [* #?? | | ??????????????????????????????# #?? | | ??????????????????????????????# """ """ #?? | | ??????????????????????????????# """ """ #?? | | ??????????????????????????????# """ """ #?? | | ??????????????????????????????# #?? | | ??????????????????????????????# """ """ #?? | | ??????????????????????????????# """ """ #?? | | ??????????????????????????????# """ """ #?? | | ?????????????????????????????##= #?? | | ?????????????????????????????#%/ #?? | | ?????????????????????????????# #?? | | ?????????????????????????????# ###########?? | | ?????????????????????????????# #???????????? | | ?????????????????????????????# #???????????? | | ????????????????????????###?## ##??????????? | | ????????????????????????#@### #??????????? | | ????????????????????????## ## #??????????? | | ?????????????????????????##l# #??????????? | | ??????????????????????????## #??????????? | | ???????????????????????????## ##??????????? | | ????????????????????????????#####???????????? | | ????????????????????????????????????????????? | | ????????????????????????????????????????????? | | ????????????????????????????????????????????? | | ????????????????????????????????????????????? | | | | | | | | | | | | | | | | | | | | | | | | | | | | | | | +----------------------------------------------------+ Best States ------------- Heat Dissipation 28 Energy Generation 14 Energy Capacity 250 Matter Stores 300 Matter Capacity 300 Sight Range 16 Terrain Scan Density 10 Armor Coverage 150 Evasion (%) 55 Item Schematics ----------------- None Robot Schematics ------------------ None Fabricated ------------ Nothing Alien Tech Used ----------------- None Achievements -------------- None Challenges ------------ None Game ------ Seed NeutronNeutrinoBoomstick Manual? 0 Play Time 00:13:37 Cumulative 14.8 hours Start 2024.04.03 @ 06:42:51 End 2024.04.03 @ 06:54:36 Sessions 1 Manual Loads 0 Difficulty Rogue Special Mode None Game No. 11 Rogue 11 Adventurer 0 Explorer 0 Win Type - Total 1 Types 1/0/0/0/0/0/0/0/0 Lore% 16 Gallery% 20 Achievement% 21 Wizard Run 0 Options --------- Layout 0 ASCII 0 Keyboard 0 Movement Mouse Keybinds 0 Fullscreen 1 Font 18/SmallcapsGlow Map View 76x50 Zoom Use 0% Tactical HUD 1 Map Filters NONE Filters NONE Steam 1 RUN: 94413b16-251b-4f10-8b32-7ee3e89ff3ab